fUST/lending_fUST_20251012
["ID","MTS","AMOUNT","RATE_DAILY","PERIOD"]
[390912739,1760214638586,-500.0,0.00025473,2]
[390912740,1760214638595,-500.0,0.00025473,2]
[390912741,1760214638605,-500.0,0.00025473,2]
[390912742,1760214638614,-611.46,0.00025475,3]
[390912743,1760214638624,-305.73,0.00025475,3]
[390912744,1760214638633,-152.86,0.00025475,3]
[390912745,1760214638642,-458.62,0.00025475,3]
[390912746,1760214638657,-178.664,0.00025479,10]
[390912747,1760214638666,-500.0,0.00025484,8]
[390912748,1760214638676,-408265.379001,0.00025485,2]
[390912749,1760214638685,-5455.20197145,0.00025485,2]
[390912750,1760214638696,-370000.0,0.00025495,2]
[390912751,1760214638706,-281.355166,0.00025495,7]
[390912752,1760214638715,-292.414102,0.00025495,7]
[390912753,1760214638724,-151.0,0.00025495,7]
[390912754,1760214638735,-281.355166,0.00025495,7]
[390912755,1760214638745,-281.355166,0.00025495,7]
[390912756,1760214638754,-281.355166,0.00025495,7]
[390912757,1760214638764,-153.822419,0.00025495,7]
[390912758,1760214638773,-151.0,0.00025495,7]
[390912759,1760214638785,-151.0,0.00025495,7]
[390912760,1760214638794,-384.055503,0.00025495,7]
[390912761,1760214638803,-384.055503,0.00025495,7]
[390912762,1760214638812,-384.055503,0.00025495,7]
[390912763,1760214638821,-384.055503,0.00025495,7]
[390912764,1760214638830,-151.0,0.00025495,7]
[390912765,1760214638839,-2909.4078846,0.00025723,2]
[390912766,1760214638849,-262.5,0.00025779,2]
[390912767,1760214638858,-779.31456735,0.0002598,2]
[390912768,1760214638867,-19292.2273969,0.00026017,2]
[390912769,1760214638877,-1000.0,0.00026021,2]
[390912770,1760214638886,-2639.61,0.00026027,2]
[390912771,1760214638895,-151.0,0.00026028,9]
[390912772,1760214638904,-2609.37557469,0.00026217,2]
[390912773,1760214638914,-1135.49043325,0.00026259,2]
[390912774,1760214638924,-211.66574074,0.000263,2]
[390912775,1760214638933,-193.49420156,0.000263,2]
[390912776,1760214638942,-588.1827557,0.00026348,2]
[390912777,1760214638951,-2182.74,0.0002636,3]
[390912778,1760214638961,-1091.38,0.0002636,3]
[390912779,1760214638970,-545.68,0.0002636,3]
[390912780,1760214638979,-285.0,0.00026379,2]
[390912781,1760214638988,-211.66574074,0.000265,2]
[390912782,1760214638997,-193.49420156,0.000265,2]
[390912783,1760214639007,-1680.0,0.00026545,2]
[390912784,1760214639017,-11977.20636141,0.00026565,2]
[390912785,1760214639029,-4196.0,0.00026649,2]
[390912786,1760214639038,-965.308089,0.00026676,2]
[390912787,1760214639048,-1426.6681072,0.00026712,2]
[390912788,1760214639058,-211.66574074,0.000268,2]
[390912789,1760214639067,-193.49420156,0.000268,2]
[390912790,1760214639077,-1222.92,0.00026845,3]
[390912791,1760214639087,-611.46,0.00026845,3]
[390912792,1760214639096,-305.72,0.00026845,3]
[390912793,1760214639106,-307.5,0.00026979,2]
[390912794,1760214639116,-500.0,0.00026991,8]
[390912795,1760214639126,-480.28107832,0.00026991,8]
[390912796,1760214639135,-500.0,0.00026991,8]
[390912797,1760214639145,-500.0,0.00026991,8]
[390912798,1760214639154,-500.0,0.00026991,8]
[390912799,1760214639163,-500.0,0.00026991,7]
[390912800,1760214639173,-500.0,0.00026991,8]
[390912801,1760214639183,-500.0,0.00026991,8]
[390912802,1760214639192,-419.17782131,0.00026991,8]
[390912803,1760214639202,-500.0,0.00026991,8]
[390912804,1760214639212,-980.0,0.00026992,2]
[390912805,1760214639222,-2159.0,0.00026992,2]
[390912806,1760214639231,-630.0,0.00026992,2]
[390912807,1760214639241,-411.0,0.00026992,2]
[390912808,1760214639250,-420.0,0.00027072,2]
[390912809,1760214639260,-211.66574074,0.000271,2]
[390912810,1760214639271,-1426.6681073,0.00027106,2]
[390912811,1760214639285,-1135.49043325,0.00027139,2]
[390912812,1760214639294,-297.8851395,0.00027193,2]
[390912813,1760214639304,-277.0,0.000272,2]
[390912814,1760214639314,-779.31456735,0.00027203,2]
[390912815,1760214639324,-22661.5778163,0.00027213,2]
[390912816,1760214639335,-799.99999997,0.00027218,2]
[390912817,1760214639344,-211.66574074,0.000273,2]
[390912818,1760214639355,-2639.61,0.00027397,4]
[390912819,1760214639365,-300.0,0.00027397,30]
[390912820,1760214639375,-300.0,0.00027397,30]
[390912821,1760214639384,-300.0,0.00027397,30]
[390912823,1760214639394,-300.0,0.00027397,30]
[390912825,1760214639404,-300.0,0.00027397,30]
[390912827,1760214639413,-300.0,0.00027397,30]
[390912829,1760214639422,-300.0,0.00027397,30]
[390912831,1760214639431,-300.0,0.00027397,30]
[390912833,1760214639440,-300.0,0.00027397,30]
[390912835,1760214639450,-300.0,0.00027397,30]
[390912837,1760214639459,-300.0,0.00027397,30]
[390912838,1760214639468,-300.0,0.00027397,30]
[390912840,1760214639477,-300.0,0.00027397,30]
[390912841,1760214639486,-300.0,0.00027397,30]
[390912843,1760214639496,-300.0,0.00027397,30]
[390912845,1760214639505,-300.0,0.00027397,30]
[390912848,1760214639514,-300.0,0.00027397,30]
[390912850,1760214639523,-300.0,0.00027397,30]
[390912852,1760214639535,-300.0,0.00027397,30]
[390912853,1760214639545,-300.0,0.00027397,30]
[390912855,1760214639554,-300.0,0.00027397,30]
[390912857,1760214639563,-300.0,0.00027397,30]
[390912860,1760214639573,-300.0,0.00027397,30]
[390912862,1760214639582,-200.461075,0.00027397,30]
[390912864,1760214639592,-3787.94,0.000274,2]
[390912866,1760214639601,-150.0,0.00027407,2]
[390912868,1760214639610,-150.0,0.00027407,2]
[390912870,1760214639621,-150.0,0.00027407,2]
[390912872,1760214639629,-252.016,0.00027407,2]
[390912874,1760214639638,-1205.0,0.00027509,2]
[390912876,1760214639649,-151.87,0.00027513,15]
[390912878,1760214639658,-330.0,0.00027579,2]
[390912880,1760214639670,-151.87,0.00027613,15]
[390912882,1760214639679,-200.0,0.000277,120]
[390912885,1760214639688,-151.87,0.00027713,15]
[390912888,1760214639698,-151.87,0.00027813,15]
[390912889,1760214639708,-300.0,0.00027842,30]
[390912892,1760214639719,-300.0,0.00027842,30]
[390912893,1760214639729,-300.0,0.00027842,30]
[390912895,1760214639739,-300.0,0.00027842,30]
[390912898,1760214639748,-300.0,0.00027842,30]
[390912900,1760214639757,-300.0,0.00027842,30]
[390912901,1760214639767,-300.0,0.00027842,30]
[390912902,1760214639779,-300.0,0.00027842,30]
[390912903,1760214639791,-300.0,0.00027842,30]
[390912904,1760214639803,-300.0,0.00027842,30]
[390912905,1760214639814,-300.0,0.00027842,30]
[390912906,1760214639825,-300.0,0.00027842,30]
[390912907,1760214639836,-300.0,0.00027842,30]
[390912908,1760214639847,-300.0,0.00027842,30]
[390912909,1760214639858,-300.0,0.00027842,30]
[390912911,1760214639869,-600.0,0.00027842,30]
[390912913,1760214639879,-2609.37557469,0.00027842,30]
[390912914,1760214639889,-298.08050243,0.00027842,30]
[390912915,1760214639899,-151.87,0.00027913,15]
[390912916,1760214639911,-151.87,0.00028013,15]
[390912918,1760214639922,-1135.49043325,0.0002802,2]
[390912920,1760214639933,-151.87,0.00028113,15]
[390912921,1760214639943,-1057.62631398,0.0002812,2]
[390912922,1760214639954,-619.05268132,0.00028143,2]
[390912923,1760214639965,-352.5,0.00028179,2]
[390912924,1760214639976,-152.198179,0.00028195,4]
[390912925,1760214639987,-154.809388,0.00028195,4]
[390912926,1760214639999,-151.87,0.00028213,15]
[390912927,1760214640010,-588.4106815,0.00028219,30]
[390912928,1760214640020,-588.4106815,0.00028219,30]
[390912929,1760214640033,-151.87,0.00028313,15]
[390912930,1760214640043,-151.87,0.00028413,15]
[390912931,1760214640054,-153.0,0.00028472,30]
[390912932,1760214640065,-153.0,0.00028472,30]
[390912933,1760214640077,-153.0,0.00028472,30]
[390912934,1760214640088,-151.87,0.00028513,15]
[390912935,1760214640100,-151.87,0.00028613,15]
[390912936,1760214640113,-500.0,0.00028651,10]
[390912937,1760214640125,-151.87,0.00028713,15]
[390912938,1760214640137,-779.31456735,0.00028763,2]
[390912939,1760214640147,-2639.61,0.00028767,6]
[390912940,1760214640158,-465.693895,0.0002877,60]
[390912941,1760214640168,-5056.4814873,0.00028772,2]
[390912942,1760214640180,-500.0,0.00028773,5]
[390912943,1760214640190,-500.33211956,0.00028773,5]
[390912944,1760214640201,-375.0,0.00028779,2]
[390912945,1760214640211,-500.0,0.00028787,11]
[390912946,1760214640221,-3787.94,0.000288,2]
[390912947,1760214640232,-151.87,0.00028813,15]
[390912948,1760214640243,-1000.0,0.0002889,5]
[390912949,1760214640253,-1135.49043325,0.000289,2]
[390912950,1760214640264,-1871.0,0.00028907,2]
[390912951,1760214640279,-151.87,0.00028913,15]
[390912952,1760214640290,-160.0,0.00028951,3]
[390912953,1760214640300,-500.0,0.00028973,5]
[390912954,1760214640311,-4675.8874041,0.0002899,2]
[390912955,1760214640321,-2201.74723435,0.0002899,2]
[390912956,1760214640331,-254428.96838315,0.00029,120]
[390912957,1760214640340,-2609.37557469,0.00029,120]
[390912958,1760214640350,-151.0,0.00029,30]
[390912959,1760214640360,-151.0,0.00029,30]
[390912960,1760214640370,-151.0,0.00029,30]
[390912961,1760214640381,-151.0,0.00029,30]
[390912962,1760214640391,-151.0,0.00029,30]
[390912963,1760214640400,-151.0,0.00029,30]
[390912964,1760214640411,-151.0,0.00029,30]
[390912965,1760214640421,-151.0,0.00029,30]
[390912966,1760214640432,-151.0,0.00029,30]
[390912967,1760214640443,-151.0,0.00029,30]
[390912968,1760214640453,-151.0,0.00029,30]
[390912969,1760214640464,-151.0,0.00029,30]
[390912970,1760214640476,-151.0,0.00029,30]
[390912971,1760214640487,-151.0,0.00029,30]
[390912972,1760214640497,-269.712476,0.00029,30]
[390912973,1760214640508,-151.0,0.00029,30]
[390912974,1760214640519,-151.0,0.00029,30]
[390912975,1760214640534,-151.0,0.00029,30]
[390912976,1760214640545,-285.098693,0.00029,30]
[390912977,1760214640556,-151.0,0.00029,30]
[390912978,1760214640567,-151.0,0.00029,30]
[390912979,1760214640578,-151.0,0.00029,15]
[390912980,1760214640591,-151.0,0.00029,15]
[390912981,1760214640602,-297.634996,0.00029,15]
[390912982,1760214640613,-151.0,0.00029,30]
[390912983,1760214640624,-151.0,0.00029,30]
[390912984,1760214640634,-151.0,0.00029,30]
[390912985,1760214640645,-151.0,0.00029,30]
[390912986,1760214640663,-151.0,0.00029,30]
[390912987,1760214640673,-151.0,0.00029,30]
[390912988,1760214640683,-175.017554,0.00029,30]
[390912989,1760214640694,-175.017554,0.00029,30]
[390912990,1760214640704,-175.017554,0.00029,30]
[390912991,1760214640714,-175.017554,0.00029,30]
[390912992,1760214640725,-151.0,0.00029,30]
[390912993,1760214640735,-152.058439,0.00029,30]
[390912994,1760214640747,-151.0,0.00029,30]
[390912995,1760214640758,-151.0,0.00029,30]
[390912996,1760214640769,-151.0,0.00029,30]
[390912997,1760214640783,-151.0,0.00029,30]
[390912998,1760214640794,-151.0,0.00029,30]
[390912999,1760214640803,-151.0,0.00029,30]
[390913000,1760214640813,-275.681012,0.00029,30]
[390913001,1760214640823,-151.0,0.00029,30]
[390913002,1760214640834,-151.0,0.00029,30]
[390913003,1760214640843,-151.0,0.00029,30]
[390913004,1760214640854,-151.0,0.00029,30]
[390913005,1760214640864,-151.0,0.00029,30]
[390913006,1760214640875,-151.0,0.00029,30]
[390913007,1760214640886,-151.0,0.00029,30]
[390913008,1760214640896,-151.0,0.00029,30]
[390913009,1760214640906,-151.0,0.00029,30]
[390913010,1760214640916,-151.0,0.00029,30]
[390913011,1760214640926,-151.0,0.00029,30]
[390913012,1760214640935,-151.0,0.00029,30]
[390913013,1760214640945,-151.0,0.00029,30]
[390913014,1760214640955,-151.0,0.00029,30]
[390913015,1760214640964,-151.0,0.00029,30]
[390913016,1760214640975,-256.311674,0.00029,30]
[390913017,1760214640985,-386158.48392031,0.00029,120]
[390913018,1760214641079,150.0,0.00019498,2]
[390913019,1760214641112,226.38,0.0002127,2]
[390913020,1760214641145,-21728.05974768,0.00029,120]
[390913032,1760214643153,-339.57,0.00023043,2]
[390913033,1760214643163,-452.76,0.00024816,2]
[390913034,1760214643173,-528.06,0.0002499,3]
[390913035,1760214643324,-165.07709862,0.00024999,2]
[390913036,1760214643336,-220.12971741,0.00024999,2]
[390913037,1760214643345,-501.94083702,0.00024999,2]
[390913038,1760214643355,-565.95,0.00026588,2]
[390913039,1760214643364,-679.14,0.00028361,2]
[390913040,1760214643373,-8436.37235095,0.00029,120]
[390913045,1760214645942,-1157.4999995,0.00029,120]
[390913054,1760214717666,150.0,0.00018885,2]
[390913055,1760214718094,154.66,0.00020601,2]
[390913057,1760214804589,150.0,0.00018832,2]
[390913058,1760214805004,150.0,0.00020544,2]
[390913059,1760214883506,150.0,0.00019209,2]
[390913060,1760214883908,150.0,0.00020955,2]
[390913064,1760214920456,169.4628762,0.00011483,2]
[390913065,1760214962600,150.0,0.00019199,2]
[390913066,1760214963026,150.0,0.00020944,2]
[390913067,1760215051212,150.0,0.00019198,2]
[390913068,1760215051635,150.0,0.00020943,2]
[390913069,1760215127085,150.0,0.00019656,2]
[390913070,1760215204097,150.0,0.00019661,2]
[390913071,1760215204857,-150.0,0.00021442,2]
[390913072,1760215204881,-127.19277018,0.00021442,2]
[390913073,1760215228140,-268.35142128,0.00021228,2]
[390913074,1760215234905,200.0,0.00027,120]
[390913075,1760215282352,150.0,0.00020143,2]
[390913076,1760215361095,150.0,0.00019785,2]
[390913077,1760215413242,277.17809647,0.00021,2]
[390913078,1760215438240,150.0,0.00019423,2]
[390913079,1760215522775,150.0,0.00019433,2]
[390913080,1760215598061,150.0,0.00019441,2]
[390913081,1760215638310,-150.0,0.00021188,2]
[390913082,1760215638339,-37.84466597,0.00021442,2]
[390913083,1760215638367,-205.0,0.00021699,5]
[390913084,1760215638394,-210.5397628,0.00021859,2]
[390913085,1760215638424,-189.79305157,0.00022042,2]
[390913086,1760215638451,-500.0,0.00022583,2]
[390913087,1760215638479,-500.0,0.00022583,2]
[390913088,1760215638507,-214.54866699,0.00022642,2]
[390913089,1760215638535,-1435.8740902,0.00022708,2]
[390913090,1760215638563,-279.416337,0.00022796,2]
[390913091,1760215638592,-152.68,0.00022976,2]
[390913092,1760215638622,-195.89308572,0.00023141,2]
[390913093,1760215638652,-222.66262155,0.00023228,2]
[390913094,1760215638680,-300.0,0.00023239,2]
[390913095,1760215638885,-1200.0,0.0002324,2]
[390913096,1760215639201,-69.44172092,0.0002324,2]
[390913097,1760215639216,-10000.01,0.0002324,2]
[390913098,1760215640174,-10000.01,0.0002324,2]
[390913099,1760215641700,-1642.34883855,0.0002324,2]
[390913100,1760215641730,-500.0,0.0002324,2]
[390913101,1760215641759,-525.11693991,0.0002324,2]
[390913102,1760215641788,-500.0,0.0002324,2]
[390913103,1760215641817,-500.0,0.0002324,2]
[390913104,1760215641848,-410.01430419,0.0002324,2]
[390913105,1760215641881,-500.0,0.0002324,2]
[390913106,1760215641912,-345.0498347,0.0002324,2]
[390913107,1760215642044,-154.9501653,0.0002324,2]
[390913108,1760215644214,-500.0,0.0002324,2]
[390913109,1760215644244,-500.0,0.0002324,2]
[390913110,1760215644409,-500.0,0.0002324,2]
[390913111,1760215644439,-241.25625268,0.0002324,2]
[390913112,1760215644468,-419.87531839,0.0002324,2]
[390913113,1760215644499,-500.0,0.0002324,2]
[390913114,1760215644530,-500.0,0.0002324,2]
[390913115,1760215644562,-376.23685528,0.0002324,2]
[390913116,1760215644591,-300.0,0.00023241,2]
[390913117,1760215644624,-500.0,0.00023241,2]
[390913118,1760215644654,-500.0,0.00023241,2]
[390913119,1760215644896,-325.2731473,0.00023241,2]
[390913120,1760215646228,-174.7268527,0.00023241,2]
[390913121,1760215646259,-439.12207028,0.00023241,2]
[390913122,1760215646288,-500.0,0.00023241,2]
[390913123,1760215646316,-500.0,0.00023241,2]
[390913124,1760215646344,-500.0,0.00023241,2]
[390913125,1760215646374,-500.0,0.00023241,2]
[390913126,1760215646402,-480.28107832,0.00023241,2]
[390913127,1760215646431,-480.82445986,0.00023241,2]
[390913128,1760215646461,-501.9503535,0.00023241,2]
[390913129,1760215646488,-500.0,0.00023241,2]
[390913130,1760215646516,-346.20037068,0.00023241,2]
[390913131,1760215646631,-1200.0,0.00023239,2]
[390913132,1760215646660,-153.79962932,0.00023241,2]
[390913133,1760215646688,-500.0,0.00023241,2]
[390913134,1760215646716,-371.86565575,0.00023241,2]
[390913135,1760215646744,-588.95341218,0.00023241,2]
[390913136,1760215646772,-500.0,0.00023241,2]
[390913137,1760215646801,-500.0,0.00023241,2]
[390913138,1760215646830,-195.41061727,0.00023241,2]
[390913139,1760215671697,150.0,0.00019437,2]
[390913140,1760215756687,150.0,0.00019426,2]
[390913141,1760215787266,-150.0,0.00021204,2]
[390913142,1760215787306,-150.0,0.00022971,2]
[390913143,1760215787343,-300.0,0.00023217,2]
[390913144,1760215787411,-8800.01,0.00023218,2]
[390913145,1760215787957,-10000.01,0.00023218,2]
[390913146,1760215791642,-2975.2051936,0.00023218,2]
[390913147,1760215821412,-614.09,0.00023217,2]
[390913148,1760215821440,-500.0,0.00023217,2]
[390913149,1760215821467,-1200.0,0.00023238,2]
[390913150,1760215821496,-153.64985305,0.00023238,2]
[390913151,1760215821527,-500.0,0.00023239,2]
[390913152,1760215821555,-500.0,0.00023239,2]
[390913153,1760215821583,-500.0,0.00023239,2]
[390913154,1760215821610,-208.01,0.00023239,2]
[390913155,1760215821638,-500.0,0.00023239,2]
[390913156,1760215821665,-148.5102939,0.00023239,2]
[390913157,1760215821829,-351.4897061,0.00023239,2]
[390913158,1760215825236,-500.0,0.00023239,2]
[390913159,1760215825268,-500.0,0.00023239,2]
[390913160,1760215825296,-500.0,0.00023239,2]
[390913161,1760215825324,-252.91,0.00023239,2]
[390913162,1760215825352,-500.0,0.00023239,2]
[390913163,1760215825380,-500.0,0.00023239,2]
[390913164,1760215825410,-500.0,0.00023239,2]
[390913165,1760215825438,-295.34,0.00023239,2]
[390913166,1760215825468,-500.0,0.00023239,2]
[390913167,1760215825498,-500.0,0.00023239,2]
[390913168,1760215825532,-403.51,0.00023239,2]
[390913169,1760215825718,-96.49,0.00023239,2]
[390913170,1760215827174,-500.0,0.00023239,2]
[390913171,1760215827205,-500.0,0.00023239,2]
[390913172,1760215827235,-500.0,0.00023239,2]
[390913173,1760215827268,-500.0,0.00023239,2]
[390913174,1760215827298,-500.0,0.00023239,2]
[390913175,1760215827328,-500.0,0.00023239,2]
[390913176,1760215827359,-500.0,0.00023239,2]
[390913177,1760215827389,-500.0,0.00023239,2]
[390913178,1760215827420,-500.0,0.00023239,2]
[390913179,1760215827449,-500.0,0.00023239,2]
[390913180,1760215827623,-0.01,0.00023239,2]
[390913193,1760215831866,150.0,0.00019427,2]
[390913212,1760215832103,-499.99,0.00023239,2]
[390913214,1760215832112,-500.0,0.00023239,2]
[390913216,1760215832122,-500.0,0.00023239,2]
[390913218,1760215832132,-309.50332446,0.00023239,2]
[390913220,1760215832143,-190.49667554,0.00023239,2]
[390913222,1760215832153,-500.0,0.00023239,2]
[390913224,1760215832162,-159.50946842,0.00023239,2]
[390913226,1760215832173,-340.49053158,0.00023239,2]
[390913228,1760215832183,-500.0,0.00023239,2]
[390913230,1760215832193,-500.0,0.00023239,2]
[390913232,1760215832202,-500.0,0.00023239,2]
[390913234,1760215832212,-500.0,0.00023239,2]
[390913236,1760215832221,-249.08,0.00023239,2]
[390913238,1760215832230,-500.0,0.00023239,2]
[390913240,1760215832239,-180.49,0.00023239,2]
[390913243,1760215832248,-500.0,0.00023239,2]
[390913245,1760215832257,-191.62285441,0.00023239,2]
[390913248,1760215832267,-500.0,0.00023241,2]
[390913251,1760215832276,-500.0,0.00023241,2]
[390913254,1760215832286,-500.0,0.00023241,2]
[390913257,1760215832295,-358.74926532,0.00023241,2]
[390913260,1760215832304,-500.0,0.00023241,2]
[390913263,1760215832313,-500.0,0.00023241,2]
[390913266,1760215832323,-559.0,0.00023608,2]
[390913269,1760215832332,-176.69733101,0.00023838,2]
[390913272,1760215832341,-171.40645004,0.00023875,2]
[390913275,1760215832350,-559.0,0.00023917,2]
[390913278,1760215832359,-500.33211956,0.00023973,2]
[390913281,1760215832369,-500.0,0.00023973,2]
[390913283,1760215832378,-500.0,0.00023973,2]
[390913286,1760215832387,-500.0,0.00023973,2]
[390913289,1760215832396,-500.0,0.00023973,2]
[390913291,1760215832405,-500.0,0.00023973,2]
[390913292,1760215832414,-635.17506224,0.00023973,2]
[390913293,1760215832423,-213.31947982,0.00023974,2]
[390913294,1760215832432,-319.58187281,0.00023974,2]
[390913295,1760215832441,-500.0,0.00023975,2]
[390913296,1760215832450,-500.0,0.00023975,2]
[390913297,1760215832460,-500.0,0.00023975,2]
[390913298,1760215832469,-500.0,0.00023975,2]
[390913299,1760215832478,-500.0,0.00023975,2]
[390913300,1760215832487,-500.0,0.00023975,2]
[390913301,1760215832495,-500.0,0.00023975,2]
[390913302,1760215832504,-500.0,0.00023975,2]
[390913303,1760215832515,-500.0,0.00023975,2]
[390913304,1760215832524,-500.0,0.00023975,2]
[390913305,1760215832533,-500.0,0.00023975,2]
[390913306,1760215832543,-641.36,0.00023975,2]
[390913307,1760215832552,-500.0,0.00023975,2]
[390913308,1760215832561,-500.0,0.00023975,2]
[390913309,1760215832569,-500.0,0.00023975,2]
[390913310,1760215832578,-500.0,0.00023975,2]
[390913311,1760215832587,-500.0,0.00023975,2]
[390913312,1760215832597,-500.0,0.00023975,2]
[390913313,1760215832605,-500.0,0.00023975,2]
[390913314,1760215832614,-500.0,0.00023975,2]
[390913315,1760215832623,-500.0,0.00023975,2]
[390913316,1760215832632,-500.0,0.00023975,2]
[390913317,1760215832642,-500.0,0.00023975,2]
[390913318,1760215832662,-500.0,0.00023975,2]
[390913319,1760215832672,-500.0,0.00023975,2]
[390913320,1760215832682,-298.32469107,0.00023975,2]
[390913321,1760215832692,-500.0,0.00023975,2]
[390913322,1760215832701,-500.0,0.00023975,2]
[390913323,1760215832711,-500.0,0.00023975,2]
[390913324,1760215832721,-375.3,0.00023975,2]
[390913325,1760215832731,-500.0,0.00023975,2]
[390913326,1760215832741,-500.0,0.00023975,2]
[390913327,1760215832751,-500.0,0.00023975,2]
[390913328,1760215832761,-500.0,0.00023975,2]
[390913329,1760215832772,-500.0,0.00023975,2]
[390913330,1760215832782,-500.0,0.00023975,2]
[390913331,1760215832792,-500.0,0.00023975,2]
[390913332,1760215832802,-500.0,0.00023975,2]
[390913333,1760215832813,-500.0,0.00023975,2]
[390913334,1760215832823,-500.0,0.00023975,2]
[390913335,1760215832833,-500.0,0.00023975,2]
[390913336,1760215832843,-500.0,0.00023975,2]
[390913337,1760215832853,-500.0,0.00023975,2]
[390913338,1760215832863,-500.0,0.00023975,2]
[390913339,1760215832873,-168.58,0.00023975,2]
[390913340,1760215832883,-500.0,0.00023975,2]
[390913341,1760215832892,-500.0,0.00023975,2]
[390913342,1760215832902,-500.0,0.00023975,2]
[390913343,1760215832912,-500.0,0.00023975,2]
[390913344,1760215832922,-500.0,0.00023975,2]
[390913345,1760215832932,-500.0,0.00023975,2]
[390913346,1760215832941,-500.0,0.00023975,2]
[390913347,1760215832951,-500.0,0.00023975,2]
[390913348,1760215832960,-500.0,0.00023975,2]
[390913349,1760215832970,-299.04,0.00023975,2]
[390913350,1760215832980,-612.5,0.00023975,2]
[390913351,1760215832990,-500.0,0.00023975,2]
[390913352,1760215833002,-500.0,0.00023975,2]
[390913353,1760215833014,-500.0,0.00023975,2]
[390913354,1760215833024,-500.0,0.00023975,2]
[390913355,1760215833035,-500.0,0.00023975,2]
[390913357,1760215833046,-500.0,0.00023975,2]
[390913358,1760215833056,-500.0,0.00023975,2]
[390913359,1760215833066,-500.0,0.00023975,2]
[390913361,1760215833078,-274.06,0.00023975,2]
[390913363,1760215833088,-500.0,0.00023975,2]
[390913365,1760215833098,-500.0,0.00023975,2]
[390913367,1760215833106,-500.0,0.00023975,2]
[390913369,1760215833116,-468.82,0.00023975,2]
[390913371,1760215833125,-500.0,0.00023975,2]
[390913373,1760215833134,-237.18,0.00023975,2]
[390913375,1760215833143,-500.0,0.00023975,2]
[390913377,1760215833153,-543.47,0.00023975,2]
[390913379,1760215833163,-500.0,0.00023975,2]
[390913381,1760215833171,-500.0,0.00023975,2]
[390913383,1760215833181,-500.0,0.00023975,2]
[390913384,1760215833191,-500.0,0.00023975,2]
[390913386,1760215833200,-500.0,0.00023975,2]
[390913388,1760215833211,-500.0,0.00023975,2]
[390913389,1760215833220,-537.69,0.00023975,2]
[390913390,1760215833230,-18603.8837,0.00023976,2]
[390913392,1760215833240,-168.88576873,0.00023976,2]
[390913393,1760215833250,-1248.09,0.0002398,3]
[390913395,1760215833262,-624.05,0.0002398,3]
[390913396,1760215833271,-312.02,0.0002398,3]
[390913397,1760215833281,-156.01,0.0002398,3]
[390913398,1760215833290,-468.06,0.0002398,3]
[390913400,1760215833302,-500.0,0.00023987,2]
[390913401,1760215833311,-251.88108813,0.00023987,2]
[390913402,1760215833320,-500.0,0.00023987,2]
[390913403,1760215833329,-500.0,0.00023987,2]
[390913404,1760215833339,-500.0,0.00023987,2]